[Event "2026 European Womens Championship"]
[Site "Batumi, GE"]
[Date "2026.06.04"]
[Round "10"]
[White "Liavonava, Yuliya"]
[Black "Brunello, Marina"]
[Result "1-0"]
[Board "50"]
[TimeControl "5400+30"]
[WhiteFideId "13524178"]
[BlackFideId "822590"]
[WhiteElo "2118"]
[BlackElo "2346"]
[WhiteTitle "WFM"]
[BlackTitle "IM"]
[WhiteClock "0:08:08"]
[BlackClock "0:13:16"]
[Variant "Standard"]

1. e4 {[%clk 1:30:58]}  c5 {[%clk 1:30:57]} 2. Nf3 {[%clk 1:31:23]}  d6 {[%clk 1:31:23]} 3. Bb5+ {[%clk 1:31:49]}  Nd7 {[%clk 1:31:49]}
4. Ba4 {[%clk 1:32:08]}  a6 {[%clk 1:30:42]} 5. c4 {[%clk 1:32:29]}  Ngf6 {[%clk 1:30:04]} 6. Nc3 {[%clk 1:30:12]}  e6 {[%clk 1:30:26]}
7. O-O {[%clk 1:29:58]}  Be7 {[%clk 1:30:53]} 8. d3 {[%clk 1:29:48]}  O-O {[%clk 1:31:11]} 9. h3 {[%clk 1:29:35]}  Ne5 {[%clk 1:25:57]}
10. Nxe5 {[%clk 1:28:03]}  dxe5 {[%clk 1:26:22]} 11. Qe2 {[%clk 1:28:10]}  h6 {[%clk 1:26:26]} 12. f4 {[%clk 1:27:42]}  Bd6 {[%clk 1:21:13]}
13. Bd2 {[%clk 1:24:10]}  Bc7 {[%clk 0:55:46]} 14. Kh1 {[%clk 1:23:55]}  exf4 {[%clk 0:54:19]} 15. e5 {[%clk 1:21:44]}  Nh7 {[%clk 0:49:50]}
16. Bxf4 {[%clk 1:20:53]}  Qh4 {[%clk 0:49:19]} 17. Ne4 {[%clk 1:18:45]}  Qe7 {[%clk 0:44:40]} 18. Bc2 {[%clk 1:15:11]}  Rd8 {[%clk 0:37:52]}
19. Nf6+ {[%clk 1:07:34]}  Nxf6 {[%clk 0:35:16]} 20. exf6 {[%clk 1:08:30]}  Qd7 {[%clk 0:35:32]} 21. fxg7 {[%clk 0:53:34]}  Bxf4 {[%clk 0:34:48]}
22. Rxf4 {[%clk 0:53:57]}  f5 {[%clk 0:34:11]} 23. Rf3 {[%clk 0:42:59]}  Qd6 {[%clk 0:28:00]} 24. Re1 {[%clk 0:41:42]}  b6 {[%clk 0:27:11]}
25. Re3 {[%clk 0:36:14]}  Ra7 {[%clk 0:25:37]} 26. Qh5 {[%clk 0:35:37]}  Kxg7 {[%clk 0:19:28]} 27. Bd1 {[%clk 0:34:26]}  Qf4 {[%clk 0:17:01]}
28. Qe2 {[%clk 0:30:02]}  Rf7 {[%clk 0:13:44]} 29. Qc2 {[%clk 0:27:46]}  Qd6 {[%clk 0:11:49]} 30. Bf3 {[%clk 0:24:04]}  Rf6 {[%clk 0:10:51]}
31. Qf2 {[%clk 0:17:26]}  Qf4 {[%clk 0:09:25]} 32. Qc2 {[%clk 0:16:59]}  Qd6 {[%clk 0:08:27]} 33. b3 {[%clk 0:15:05]}  Qd4 {[%clk 0:06:28]}
34. Qc1 {[%clk 0:11:04]}  a5 {[%clk 0:06:20]} 35. a3 {[%clk 0:10:17]}  Qh4 {[%clk 0:04:33]} 36. Qb1 {[%clk 0:10:01]}  Qd4 {[%clk 0:04:19]}
37. b4 {[%clk 0:09:48]}  cxb4 {[%clk 0:03:01]} 38. axb4 {[%clk 0:10:15]}  Bd7 {[%clk 0:03:25]} 39. bxa5 {[%clk 0:09:56]}  bxa5 {[%clk 0:03:51]}
40. Qb7 {[%clk 0:09:49]}  Kg6 {[%clk 0:02:19]} 41. Qc7 {[%clk 0:09:27]}  Bc8 {[%clk 0:01:18]} 42. Qxa5 {[%clk 0:06:06]}  Kg7 {[%clk 0:01:16]}
43. c5 {[%clk 0:05:35]}  Rf7 {[%clk 0:01:43]} 44. c6 {[%clk 0:02:49]}  Ra7 {[%clk 0:01:51]} 45. Qb5 {[%clk 0:01:51]}  Kf6 {[%clk 0:28:17]}
46. Qb8 {[%clk 0:25:07]}  Ra1 {[%clk 0:25:00]} 47. Qg3 {[%clk 0:22:44]}  Rxe1+ {[%clk 0:13:42]} 48. Rxe1 {[%clk 0:23:08]}  Qd6 {[%clk 0:13:15]}
49. Qh4+ {[%clk 0:22:34]}  Kg6 {[%clk 0:13:27]} 50. Ra1 {[%clk 0:20:13]}  Rg8 {[%clk 0:12:36]} 51. Qh5+ {[%clk 0:13:22]}  Kh7 {[%clk 0:12:51]}
52. Ra7+ {[%clk 0:12:24]}  Rg7 {[%clk 0:13:15]} 53. Rxg7+ {[%clk 0:12:48]}  Kxg7 {[%clk 0:13:42]} 54. Qe8 {[%clk 0:12:01]}  Qc7 {[%clk 0:13:32]}
55. Bh5 {[%clk 0:09:37]}  Kf6 {[%clk 0:13:54]} 56. d4 {[%clk 0:08:14]}  Ba6 {[%clk 0:13:30]} 57. h4 {[%clk 0:07:37]}  Qg7 {[%clk 0:12:15]}
58. Qd8+ {[%clk 0:08:01]}  Qe7 {[%clk 0:12:42]} 59. c7 {[%clk 0:08:18]}  f4 {[%clk 0:12:47]} 60. Be8 {[%clk 0:07:50]}  Bb7 {[%clk 0:12:16]}
61. Bd7 {[%clk 0:07:11]}  Ba6 {[%clk 0:12:31]} 62. Qxe7+ {[%clk 0:07:17]}  Kxe7 {[%clk 0:12:48]} 63. c8=Q {[%clk 0:07:43]}  Bxc8 {[%clk 0:13:16]}
64. Bxc8 {[%clk 0:08:08]} 1-0

[Event "2026 European Womens Championship"]
[Site "Batumi, GE"]
[Date "2026.06.04"]
[Round "10"]
[White "Arakhamia-Grant, Ketevan"]
[Black "Lomaia, Diana"]
[Result "0-1"]
[Board "51"]
[TimeControl "5400+30"]
[WhiteFideId "13600168"]
[BlackFideId "13612476"]
[WhiteElo "2306"]
[BlackElo "2110"]
[WhiteTitle "GM"]
[BlackTitle "WFM"]
[WhiteClock "0:01:10"]
[BlackClock "0:05:20"]
[Variant "Standard"]

1. e4 {[%clk 1:30:58]}  e5 {[%clk 1:30:56]} 2. Nf3 {[%clk 1:31:18]}  Nc6 {[%clk 1:31:16]} 3. Bb5 {[%clk 1:31:39]}  a6 {[%clk 1:31:40]}
4. Ba4 {[%clk 1:32:04]}  Nf6 {[%clk 1:31:45]} 5. d3 {[%clk 1:31:55]}  Bc5 {[%clk 1:30:27]} 6. c3 {[%clk 1:31:35]}  b5 {[%clk 1:29:30]}
7. Bb3 {[%clk 1:31:58]}  O-O {[%clk 1:28:38]} 8. O-O {[%clk 1:31:55]}  d5 {[%clk 1:26:37]} 9. exd5 {[%clk 1:01:58]}  Nxd5 {[%clk 1:24:01]}
10. Re1 {[%clk 1:01:37]}  Bg4 {[%clk 1:17:31]} 11. h3 {[%clk 1:01:34]}  Bh5 {[%clk 1:17:12]} 12. Nbd2 {[%clk 0:51:13]}  Nf4 {[%clk 1:13:46]}
13. d4 {[%clk 0:31:32]}  exd4 {[%clk 1:09:22]} 14. Ne4 {[%clk 0:31:53]}  Nxh3+ {[%clk 0:48:20]} 15. gxh3 {[%clk 0:18:53]}  Ne5 {[%clk 0:47:20]}
16. Nxe5 {[%clk 0:07:06]}  Bxd1 {[%clk 0:46:51]} 17. Rxd1 {[%clk 0:06:40]}  Be7 {[%clk 0:31:31]} 18. Rxd4 {[%clk 0:05:28]}  Qe8 {[%clk 0:22:55]}
19. Bf4 {[%clk 0:03:52]}  c5 {[%clk 0:17:14]} 20. Rd2 {[%clk 0:04:17]}  c4 {[%clk 0:17:24]} 21. Bc2 {[%clk 0:04:42]}  f5 {[%clk 0:15:29]}
22. Nd6 {[%clk 0:03:56]}  Qh5 {[%clk 0:14:59]} 23. Re1 {[%clk 0:03:24]}  Bxd6 {[%clk 0:07:53]} 24. Rxd6 {[%clk 0:03:48]}  Rad8 {[%clk 0:07:18]}
25. Nd7 {[%clk 0:00:37]}  Rfe8 {[%clk 0:06:08]} 26. Red1 {[%clk 0:01:04]}  Kh8 {[%clk 0:05:26]} 27. Kg2 {[%clk 0:01:04]}  Re2 {[%clk 0:03:32]}
28. Ne5 {[%clk 0:01:26]}  Re8 {[%clk 0:03:05]} 29. Rd8 {[%clk 0:00:36]}  R2xe5 {[%clk 0:03:00]} 30. Bxe5 {[%clk 0:00:52]}  Qg5+ {[%clk 0:03:29]}
31. Kh2 {[%clk 0:00:37]}  Rxd8 {[%clk 0:03:24]} 32. Rg1 {[%clk 0:00:49]}  Qe7 {[%clk 0:03:21]} 33. Bxg7+ {[%clk 0:00:32]}  Qxg7 {[%clk 0:03:45]}
34. Rxg7 {[%clk 0:00:57]}  Kxg7 {[%clk 0:04:13]} 35. Bxf5 {[%clk 0:01:09]}  Rf8 {[%clk 0:04:32]} 36. Be4 {[%clk 0:00:45]}  Rxf2+ {[%clk 0:04:56]}
37. Kg3 {[%clk 0:01:10]}  Rxb2 {[%clk 0:05:20]} 0-1

[Event "2026 European Womens Championship"]
[Site "Batumi, GE"]
[Date "2026.06.04"]
[Round "10"]
[White "Velikic, Adela"]
[Black "Tashkinova, Sofiia"]
[Result "1-0"]
[Board "52"]
[TimeControl "5400+30"]
[WhiteFideId "913553"]
[BlackFideId "14188309"]
[WhiteElo "2277"]
[BlackElo "2085"]
[WhiteTitle "WIM"]
[BlackTitle "WFM"]
[WhiteClock "0:25:44"]
[BlackClock "0:34:39"]
[Variant "Standard"]

1. Nf3 {[%clk 1:29:34]}  Nf6 {[%clk 1:30:45]} 2. c4 {[%clk 1:29:58]}  e6 {[%clk 1:31:04]} 3. Nc3 {[%clk 1:30:22]}  d5 {[%clk 1:29:55]}
4. d4 {[%clk 1:30:46]}  Be7 {[%clk 1:29:50]} 5. Bf4 {[%clk 1:31:01]}  c6 {[%clk 1:25:17]} 6. e3 {[%clk 1:30:29]}  Nbd7 {[%clk 1:22:29]}
7. c5 {[%clk 1:27:15]}  Nh5 {[%clk 1:17:09]} 8. Bd3 {[%clk 1:26:21]}  Nxf4 {[%clk 1:11:47]} 9. exf4 {[%clk 1:26:45]}  f6 {[%clk 1:08:30]}
10. O-O {[%clk 1:15:36]}  Qc7 {[%clk 1:04:54]} 11. Re1 {[%clk 1:08:39]}  Qxf4 {[%clk 1:02:16]} 12. Rxe6 {[%clk 1:07:29]}  Nf8 {[%clk 0:59:45]}
13. Re3 {[%clk 1:06:38]}  Kf7 {[%clk 0:55:16]} 14. Qe2 {[%clk 0:55:08]}  Bd8 {[%clk 0:52:15]} 15. Re1 {[%clk 0:54:59]}  Bd7 {[%clk 0:43:36]}
16. Ne5+ {[%clk 0:48:25]}  fxe5 {[%clk 0:42:05]} 17. Rf3 {[%clk 0:48:44]}  Bf6 {[%clk 0:35:06]} 18. dxe5 {[%clk 0:27:04]}  Qd4 {[%clk 0:34:56]}
19. exf6 {[%clk 0:27:09]}  Re8 {[%clk 0:34:39]} 20. Qe7+ {[%clk 0:25:44]} 1-0

[Event "2026 European Womens Championship"]
[Site "Batumi, GE"]
[Date "2026.06.04"]
[Round "10"]
[White "Szczotka, Klara"]
[Black "Avetisyan, Ani"]
[Result "1/2-1/2"]
[Board "53"]
[TimeControl "5400+30"]
[WhiteFideId "21858845"]
[BlackFideId "13319035"]
[WhiteElo "2241"]
[BlackElo "2052"]
[WhiteTitle "WFM"]
[WhiteClock "0:22:46"]
[BlackClock "0:01:05"]
[Variant "Standard"]

1. d4 {[%clk 1:30:57]}  Nf6 {[%clk 1:30:56]} 2. c4 {[%clk 1:31:18]}  e6 {[%clk 1:31:23]} 3. Bg5 {[%clk 1:31:40]}  h6 {[%clk 1:31:47]}
4. Bh4 {[%clk 1:32:04]}  g5 {[%clk 1:30:53]} 5. Bg3 {[%clk 1:32:27]}  h5 {[%clk 1:29:40]} 6. f3 {[%clk 1:32:50]}  d5 {[%clk 1:26:25]}
7. Nc3 {[%clk 1:32:01]}  c6 {[%clk 1:21:17]} 8. e3 {[%clk 1:22:45]}  h4 {[%clk 1:12:33]} 9. Bf2 {[%clk 1:22:07]}  Nbd7 {[%clk 1:11:17]}
10. Nh3 {[%clk 1:20:32]}  Rg8 {[%clk 1:09:27]} 11. Be2 {[%clk 1:14:35]}  a5 {[%clk 0:57:08]} 12. Rc1 {[%clk 1:12:22]}  Be7 {[%clk 0:54:13]}
13. f4 {[%clk 1:00:38]}  gxf4 {[%clk 0:49:43]} 14. Nxf4 {[%clk 1:00:22]}  dxc4 {[%clk 0:46:00]} 15. O-O {[%clk 0:45:46]}  h3 {[%clk 0:27:57]}
16. Nxh3 {[%clk 0:44:09]}  b5 {[%clk 0:28:25]} 17. Bf3 {[%clk 0:40:05]}  Nd5 {[%clk 0:27:24]} 18. e4 {[%clk 0:33:57]}  Nxc3 {[%clk 0:25:59]}
19. bxc3 {[%clk 0:34:21]}  e5 {[%clk 0:25:59]} 20. Bg3 {[%clk 0:33:19]}  Bf6 {[%clk 0:22:30]} 21. Bh5 {[%clk 0:31:04]}  Rg7 {[%clk 0:21:10]}
22. dxe5 {[%clk 0:21:52]}  Bxe5 {[%clk 0:17:42]} 23. Bxf7+ {[%clk 0:10:39]}  Rxf7 {[%clk 0:11:58]} 24. Rxf7 {[%clk 0:10:14]}  Kxf7 {[%clk 0:12:11]}
25. Bxe5 {[%clk 0:08:11]}  Qb6+ {[%clk 0:12:04]} 26. Bd4 {[%clk 0:08:34]}  c5 {[%clk 0:12:27]} 27. Qh5+ {[%clk 0:08:38]}  Ke7 {[%clk 0:12:25]}
28. Qg5+ {[%clk 0:08:33]}  Kd6 {[%clk 0:10:24]} 29. Be3 {[%clk 0:03:41]}  Kc7 {[%clk 0:09:32]} 30. Bf4+ {[%clk 0:03:15]}  Kb7 {[%clk 0:09:35]}
31. Rd1 {[%clk 0:02:57]}  Nb8 {[%clk 0:07:14]} 32. Rd6 {[%clk 0:01:56]}  Nc6 {[%clk 0:07:37]} 33. Be3 {[%clk 0:00:47]}  Bxh3 {[%clk 0:06:35]}
34. gxh3 {[%clk 0:00:42]}  Re8 {[%clk 0:04:46]} 35. Rd7+ {[%clk 0:00:39]}  Ka6 {[%clk 0:03:57]} 36. Qd5 {[%clk 0:00:34]}  Ne7 {[%clk 0:02:16]}
37. Qxc5 {[%clk 0:00:32]}  Qxc5 {[%clk 0:01:19]} 38. Bxc5 {[%clk 0:01:00]}  Nc6 {[%clk 0:01:45]} 39. Rc7 {[%clk 0:00:57]}  Re6 {[%clk 0:02:13]}
40. a3 {[%clk 0:00:40]}  b4 {[%clk 0:00:39]} 41. axb4 {[%clk 0:00:32]}  axb4 {[%clk 0:01:05]} 42. Bxb4 {[%clk 0:22:46]} 1/2-1/2

[Event "2026 European Womens Championship"]
[Site "Batumi, GE"]
[Date "2026.06.04"]
[Round "10"]
[White "Peglau, Charis"]
[Black "Radikovic, Anamarija"]
[Result "1/2-1/2"]
[Board "54"]
[TimeControl "5400+30"]
[WhiteFideId "16219996"]
[BlackFideId "14546264"]
[WhiteElo "2238"]
[BlackElo "1974"]
[WhiteTitle "WFM"]
[BlackTitle "WFM"]
[WhiteClock "0:18:00"]
[BlackClock "0:25:00"]
[Variant "Standard"]

1. Nf3 {[%clk 1:30:57]}  Nf6 {[%clk 1:30:54]} 2. g3 {[%clk 1:31:22]}  d5 {[%clk 1:30:54]} 3. Bg2 {[%clk 1:31:42]}  c5 {[%clk 1:29:02]}
4. O-O {[%clk 1:31:52]}  Nc6 {[%clk 1:29:26]} 5. d4 {[%clk 1:32:16]}  cxd4 {[%clk 1:28:55]} 6. Nxd4 {[%clk 1:32:44]}  e5 {[%clk 1:29:16]}
7. Nxc6 {[%clk 1:33:11]}  bxc6 {[%clk 1:29:41]} 8. c4 {[%clk 1:33:34]}  h6 {[%clk 1:29:02]} 9. Nc3 {[%clk 1:32:10]}  e4 {[%clk 1:26:09]}
10. Qa4 {[%clk 1:25:59]}  Bd7 {[%clk 1:25:08]} 11. Rd1 {[%clk 1:20:33]}  Bc5 {[%clk 1:20:58]} 12. e3 {[%clk 0:43:46]}  O-O {[%clk 1:08:56]}
13. b4 {[%clk 0:40:16]}  Bd6 {[%clk 0:59:30]} 14. Rb1 {[%clk 0:39:43]}  Be5 {[%clk 0:54:35]} 15. Bb2 {[%clk 0:33:31]}  Qe7 {[%clk 0:44:29]}
16. Qc2 {[%clk 0:21:08]}  Bg4 {[%clk 0:37:19]} 17. Rd2 {[%clk 0:14:58]}  Qe6 {[%clk 0:35:26]} 18. Na4 {[%clk 0:11:25]}  Bxb2 {[%clk 0:32:43]}
19. Qxb2 {[%clk 0:10:24]}  Bf3 {[%clk 0:29:43]} 20. Nc5 {[%clk 0:10:03]}  Qf5 {[%clk 0:29:32]} 21. Nb3 {[%clk 0:09:37]}  dxc4 {[%clk 0:19:45]}
22. Nd4 {[%clk 0:09:59]}  Qh5 {[%clk 0:20:12]} 23. Qc2 {[%clk 0:08:46]}  Ng4 {[%clk 0:13:58]} 24. Nxf3 {[%clk 0:08:39]}  exf3 {[%clk 0:14:21]}
25. Bxf3 {[%clk 0:09:05]}  Qxh2+ {[%clk 0:14:43]} 26. Kf1 {[%clk 0:09:34]}  Ne5 {[%clk 0:14:38]} 27. Bg2 {[%clk 0:09:03]}  Rad8 {[%clk 0:13:45]}
28. Rd4 {[%clk 0:08:44]}  Qh5 {[%clk 0:12:32]} 29. Qe2 {[%clk 0:03:26]}  Qg6 {[%clk 0:09:00]} 30. Rbd1 {[%clk 0:03:06]}  Rxd4 {[%clk 0:08:53]}
31. exd4 {[%clk 0:03:17]}  Nd3 {[%clk 0:08:59]} 32. a3 {[%clk 0:03:26]}  Qf6 {[%clk 0:06:20]} 33. Be4 {[%clk 0:00:39]}  Qxd4 {[%clk 0:05:56]}
34. Bxd3 {[%clk 0:01:04]}  cxd3 {[%clk 0:06:21]} 35. Qxd3 {[%clk 0:00:47]}  Qb6 {[%clk 0:06:00]} 36. Kg1 {[%clk 0:00:44]}  a5 {[%clk 0:05:10]}
37. Qd6 {[%clk 0:00:41]}  axb4 {[%clk 0:05:19]} 38. axb4 {[%clk 0:01:09]}  Rb8 {[%clk 0:05:13]} 39. Rd4 {[%clk 0:01:18]}  Qb5 {[%clk 0:03:53]}
40. Qe7 {[%clk 0:01:17]}  Ra8 {[%clk 0:02:58]} 41. Rd8+ {[%clk 0:18:23]}  Rxd8 {[%clk 0:33:12]} 42. Qxd8+ {[%clk 0:18:51]}  Kh7 {[%clk 0:33:34]}
43. Qd7 {[%clk 0:18:04]}  Qc4 {[%clk 0:27:40]} 44. Qf5+ {[%clk 0:17:48]}  g6 {[%clk 0:28:04]} 45. Qf6 {[%clk 0:17:54]}  Qe6 {[%clk 0:25:00]}
46. Qd4 {[%clk 0:18:00]} 1/2-1/2

[Event "2026 European Womens Championship"]
[Site "Batumi, GE"]
[Date "2026.06.04"]
[Round "10"]
[White "Hariharan, Shambavi"]
[Black "Tsetskhladze, Mariam"]
[Result "0-1"]
[Board "55"]
[TimeControl "5400+30"]
[WhiteFideId "488160"]
[BlackFideId "13623834"]
[WhiteElo "2008"]
[BlackElo "2234"]
[WhiteTitle "WFM"]
[BlackTitle "WFM"]
[WhiteClock "0:01:03"]
[BlackClock "0:02:06"]
[Variant "Standard"]

1. d4 {[%clk 1:30:55]}  Nf6 {[%clk 1:30:47]} 2. c4 {[%clk 1:31:20]}  e6 {[%clk 1:31:14]} 3. Nf3 {[%clk 1:30:47]}  d5 {[%clk 1:31:38]}
4. g3 {[%clk 1:31:06]}  Bb4+ {[%clk 1:32:00]} 5. Bd2 {[%clk 1:31:28]}  a5 {[%clk 1:32:23]} 6. a3 {[%clk 1:30:57]}  Be7 {[%clk 1:32:37]}
7. Bg2 {[%clk 1:31:15]}  O-O {[%clk 1:32:59]} 8. Qc2 {[%clk 1:31:38]}  dxc4 {[%clk 1:32:19]} 9. Qxc4 {[%clk 1:30:55]}  b6 {[%clk 1:31:54]}
10. Bf4 {[%clk 1:28:34]}  Nd5 {[%clk 1:23:01]} 11. O-O {[%clk 1:28:11]}  Ba6 {[%clk 1:16:07]} 12. Qc2 {[%clk 1:27:15]}  Nd7 {[%clk 1:08:28]}
13. Rd1 {[%clk 1:11:52]}  Rc8 {[%clk 1:01:03]} 14. Nc3 {[%clk 0:55:46]}  Nxf4 {[%clk 0:44:12]} 15. gxf4 {[%clk 0:56:05]}  Bd6 {[%clk 0:40:31]}
16. e3 {[%clk 0:53:10]}  f6 {[%clk 0:36:35]} 17. Qb3 {[%clk 0:43:50]}  Qe7 {[%clk 0:33:19]} 18. f5 {[%clk 0:40:54]}  Rce8 {[%clk 0:28:21]}
19. Bh3 {[%clk 0:37:27]}  Nb8 {[%clk 0:23:36]} 20. fxe6 {[%clk 0:36:03]}  Kh8 {[%clk 0:23:03]} 21. d5 {[%clk 0:35:02]}  f5 {[%clk 0:22:05]}
22. Kh1 {[%clk 0:29:55]}  Qf6 {[%clk 0:16:04]} 23. Rg1 {[%clk 0:28:04]}  Qh6 {[%clk 0:16:24]} 24. Ng5 {[%clk 0:27:58]}  Kg8 {[%clk 0:13:51]}
25. f4 {[%clk 0:26:58]}  Be7 {[%clk 0:12:08]} 26. Nf7 {[%clk 0:19:39]}  Qxh3 {[%clk 0:07:51]} 27. Rxg7+ {[%clk 0:13:09]}  Kxg7 {[%clk 0:08:18]}
28. Rg1+ {[%clk 0:13:34]}  Bg5 {[%clk 0:08:37]} 29. Rxg5+ {[%clk 0:12:24]}  Kf6 {[%clk 0:09:04]} 30. Ne4+ {[%clk 0:11:50]}  Ke7 {[%clk 0:09:29]}
31. Ng3 {[%clk 0:12:02]}  Rxf7 {[%clk 0:06:12]} 32. exf7 {[%clk 0:12:25]}  Rf8 {[%clk 0:06:31]} 33. e4 {[%clk 0:06:17]}  Kd8 {[%clk 0:03:05]}
34. Rg8 {[%clk 0:02:43]}  Nd7 {[%clk 0:03:32]} 35. Qc3 {[%clk 0:02:01]}  Qh6 {[%clk 0:02:34]} 36. Qh8 {[%clk 0:01:47]}  Bd3 {[%clk 0:01:43]}
37. e5 {[%clk 0:01:14]}  Ke7 {[%clk 0:01:47]} 38. e6 {[%clk 0:00:50]}  Nf6 {[%clk 0:02:06]} 39. Qg7 {[%clk 0:00:33]}  Qxg7 {[%clk 0:02:18]}
40. Rxg7 {[%clk 0:00:57]}  Nxd5 {[%clk 0:02:22]} 41. Rxh7 {[%clk 0:01:03]}  Nxf4 {[%clk 0:02:06]} 0-1

[Event "2026 European Womens Championship"]
[Site "Batumi, GE"]
[Date "2026.06.04"]
[Round "10"]
[White "Gharibyan, Mane"]
[Black "Starosta, Martyna"]
[Result "0-1"]
[Board "56"]
[TimeControl "5400+30"]
[WhiteFideId "13306430"]
[BlackFideId "21818754"]
[WhiteElo "1776"]
[BlackElo "2175"]
[BlackTitle "WIM"]
[WhiteClock "0:00:43"]
[BlackClock "0:45:48"]
[Variant "Standard"]

1. e4 {[%clk 1:30:53]}  e6 {[%clk 1:30:54]} 2. d4 {[%clk 1:31:19]}  d5 {[%clk 1:31:20]} 3. Nd2 {[%clk 1:31:45]}  a6 {[%clk 1:31:44]}
4. Ngf3 {[%clk 1:28:20]}  c5 {[%clk 1:31:46]} 5. exd5 {[%clk 1:26:09]}  exd5 {[%clk 1:32:01]} 6. dxc5 {[%clk 1:20:10]}  Bxc5 {[%clk 1:32:04]}
7. Nb3 {[%clk 1:20:09]}  Bb6 {[%clk 1:30:06]} 8. Be2 {[%clk 1:19:14]}  Nf6 {[%clk 1:29:59]} 9. Bg5 {[%clk 1:16:50]}  Bxf2+ {[%clk 1:28:00]}
10. Kf1 {[%clk 1:06:29]}  Ba7 {[%clk 1:25:10]} 11. Bxf6 {[%clk 1:00:32]}  Qxf6 {[%clk 1:21:59]} 12. Qxd5 {[%clk 0:54:27]}  Nc6 {[%clk 1:19:14]}
13. Qe4+ {[%clk 0:46:50]}  Ne7 {[%clk 1:11:16]} 14. Re1 {[%clk 0:35:50]}  O-O {[%clk 1:06:34]} 15. Bd3 {[%clk 0:32:22]}  Ng6 {[%clk 1:06:04]}
16. Nbd4 {[%clk 0:17:43]}  Qb6 {[%clk 1:01:28]} 17. h4 {[%clk 0:12:36]}  h5 {[%clk 1:00:28]} 18. g3 {[%clk 0:05:27]}  Bg4 {[%clk 0:53:25]}
19. Kg2 {[%clk 0:01:22]}  Rad8 {[%clk 0:49:45]} 20. c3 {[%clk 0:01:24]}  Qxb2+ {[%clk 0:49:11]} 21. Ne2 {[%clk 0:01:07]}  Rfe8 {[%clk 0:48:16]}
22. Qc4 {[%clk 0:00:48]}  Bxf3+ {[%clk 0:48:29]} 23. Kh2 {[%clk 0:00:38]}  Bd5 {[%clk 0:46:59]} 24. Qc7 {[%clk 0:00:43]}  Bxh1 {[%clk 0:45:48]} 0-1

[Event "2026 European Womens Championship"]
[Site "Batumi, GE"]
[Date "2026.06.04"]
[Round "10"]
[White "Saltkhutsishvili, Sara"]
[Black "Berke, Ana"]
[Result "0-1"]
[Board "57"]
[TimeControl "5400+30"]
[WhiteFideId "13636995"]
[BlackFideId "14510359"]
[WhiteElo "1763"]
[BlackElo "2164"]
[BlackTitle "WIM"]
[WhiteClock "0:00:31"]
[BlackClock "0:22:18"]
[Variant "Standard"]

1. c4 {[%clk 1:26:37]}  c5 {[%clk 1:30:32]} 2. Nc3 {[%clk 1:26:56]}  Nc6 {[%clk 1:30:55]} 3. g3 {[%clk 1:27:09]}  e5 {[%clk 1:30:54]}
4. Bg2 {[%clk 1:27:30]}  d6 {[%clk 1:30:41]} 5. Nf3 {[%clk 1:26:43]}  g6 {[%clk 1:30:26]} 6. O-O {[%clk 1:24:51]}  Bg7 {[%clk 1:30:24]}
7. d3 {[%clk 1:18:13]}  Nge7 {[%clk 1:30:02]} 8. a3 {[%clk 1:14:32]}  a5 {[%clk 1:30:14]} 9. Rb1 {[%clk 1:06:50]}  O-O {[%clk 1:29:36]}
10. b3 {[%clk 1:06:46]}  Rb8 {[%clk 1:29:15]} 11. Bb2 {[%clk 1:04:56]}  h6 {[%clk 1:28:32]} 12. Qd2 {[%clk 0:57:28]}  Be6 {[%clk 1:26:22]}
13. Rfc1 {[%clk 0:47:11]}  f5 {[%clk 1:23:27]} 14. Na2 {[%clk 0:43:18]}  b5 {[%clk 1:21:45]} 15. e3 {[%clk 0:32:59]}  f4 {[%clk 1:13:10]}
16. exf4 {[%clk 0:26:57]}  exf4 {[%clk 1:12:55]} 17. Bxg7 {[%clk 0:26:50]}  Kxg7 {[%clk 1:13:14]} 18. cxb5 {[%clk 0:23:32]}  Rxb5 {[%clk 1:11:26]}
19. Nc3 {[%clk 0:21:45]}  Rb8 {[%clk 1:11:24]} 20. Ne4 {[%clk 0:20:54]}  Nf5 {[%clk 1:08:03]} 21. Qc3+ {[%clk 0:14:14]}  Nfd4 {[%clk 1:06:16]}
22. Nxd4 {[%clk 0:13:30]}  Nxd4 {[%clk 1:06:34]} 23. b4 {[%clk 0:12:42]}  Kh7 {[%clk 1:05:55]} 24. Re1 {[%clk 0:12:52]}  Bg4 {[%clk 1:02:32]}
25. Kh1 {[%clk 0:10:23]}  f3 {[%clk 0:58:30]} 26. Bf1 {[%clk 0:10:08]}  axb4 {[%clk 0:58:36]} 27. axb4 {[%clk 0:10:26]}  Ne2 {[%clk 0:58:06]}
28. Bxe2 {[%clk 0:05:32]}  fxe2 {[%clk 0:58:21]} 29. bxc5 {[%clk 0:06:01]}  Rxb1 {[%clk 0:37:35]} 30. Rxb1 {[%clk 0:06:28]}  Rf7 {[%clk 0:35:52]}
31. c6 {[%clk 0:02:34]}  d5 {[%clk 0:31:17]} 32. c7 {[%clk 0:00:57]}  Qe7 {[%clk 0:29:04]} 33. Nd6 {[%clk 0:00:32]}  d4 {[%clk 0:26:44]}
34. Qb4 {[%clk 0:00:33]}  Rxf2 {[%clk 0:25:37]} 35. Kg1 {[%clk 0:00:31]}  Qe3 {[%clk 0:22:18]} 0-1

[Event "2026 European Womens Championship"]
[Site "Batumi, GE"]
[Date "2026.06.04"]
[Round "10"]
[White "Mamedjarova, Zeinab"]
[Black "Kalandadze, Mariam"]
[Result "1-0"]
[Board "58"]
[TimeControl "5400+30"]
[WhiteFideId "13401521"]
[BlackFideId "13621122"]
[WhiteElo "2137"]
[BlackElo "1892"]
[WhiteTitle "WGM"]
[WhiteClock "0:01:13"]
[BlackClock "0:01:39"]
[Variant "Standard"]

1. d4 {[%clk 1:30:42]}  Nf6 {[%clk 1:30:51]} 2. Nf3 {[%clk 1:31:04]}  g6 {[%clk 1:31:17]} 3. Bf4 {[%clk 1:31:13]}  Bg7 {[%clk 1:31:43]}
4. e3 {[%clk 1:31:40]}  c5 {[%clk 1:32:06]} 5. c3 {[%clk 1:32:06]}  Qb6 {[%clk 1:31:49]} 6. Qc1 {[%clk 1:28:13]}  d6 {[%clk 1:31:42]}
7. Nbd2 {[%clk 1:28:31]}  Nbd7 {[%clk 1:29:35]} 8. h3 {[%clk 1:28:07]}  O-O {[%clk 1:29:24]} 9. Bc4 {[%clk 1:25:46]}  Qc6 {[%clk 1:23:48]}
10. O-O {[%clk 1:25:44]}  b5 {[%clk 1:23:43]} 11. Bb3 {[%clk 1:22:58]}  Bb7 {[%clk 1:22:39]} 12. a4 {[%clk 1:21:43]}  a6 {[%clk 1:22:39]}
13. Qd1 {[%clk 1:20:24]}  e5 {[%clk 1:17:34]} 14. Bh2 {[%clk 1:12:14]}  e4 {[%clk 1:04:04]} 15. Ne1 {[%clk 1:08:10]}  Rfe8 {[%clk 1:02:45]}
16. g4 {[%clk 1:01:18]}  c4 {[%clk 0:57:09]} 17. Bc2 {[%clk 0:59:43]}  Qd5 {[%clk 0:56:41]} 18. Ng2 {[%clk 0:59:58]}  h5 {[%clk 0:54:13]}
19. Qe2 {[%clk 0:58:03]}  hxg4 {[%clk 0:42:58]} 20. hxg4 {[%clk 0:57:08]}  Nf8 {[%clk 0:43:14]} 21. b3 {[%clk 0:56:19]}  Bc8 {[%clk 0:36:38]}
22. bxc4 {[%clk 0:55:39]}  bxc4 {[%clk 0:37:01]} 23. Qxc4 {[%clk 0:45:01]}  Qg5 {[%clk 0:35:59]} 24. Bxd6 {[%clk 0:44:05]}  Bxg4 {[%clk 0:36:10]}
25. Bd1 {[%clk 0:05:18]}  Bh3 {[%clk 0:30:54]} 26. Bg3 {[%clk 0:05:41]}  Nh5 {[%clk 0:27:53]} 27. Kh2 {[%clk 0:05:52]}  Rac8 {[%clk 0:14:52]}
28. Qxa6 {[%clk 0:05:38]}  Bxg2 {[%clk 0:13:55]} 29. Kxg2 {[%clk 0:06:06]}  Rxc3 {[%clk 0:13:47]} 30. Bxh5 {[%clk 0:04:03]}  gxh5 {[%clk 0:09:39]}
31. Qb5 {[%clk 0:04:17]}  Qxb5 {[%clk 0:07:38]} 32. axb5 {[%clk 0:04:41]}  Nd7 {[%clk 0:07:29]} 33. Rfc1 {[%clk 0:03:30]}  Rd3 {[%clk 0:07:12]}
34. Nc4 {[%clk 0:02:06]}  Re6 {[%clk 0:07:01]} 35. Rab1 {[%clk 0:00:52]}  Rg6 {[%clk 0:06:32]} 36. Kf1 {[%clk 0:00:38]}  h4 {[%clk 0:01:16]}
37. Bf4 {[%clk 0:00:39]}  h3 {[%clk 0:01:35]} 38. b6 {[%clk 0:01:02]}  Bh6 {[%clk 0:01:27]} 39. Ne5 {[%clk 0:01:01]}  Nxe5 {[%clk 0:01:39]}
40. Bxe5 {[%clk 0:01:13]} 1-0